Cogmind - Beta 16.1 @@@ ROGUE MODE // 2026.04.26 @ 18:54:22 Player: Bereft Result: Self-destructed Performance ------------- Evolutions (0) 0 Regions Visited (4) 800 Robots Destroyed (1) 5 Value Destroyed (34) 34 Prototype IDs (0) 0 Alien Tech Used (0) 0 Bonus (0) 0 TOTAL SCORE: 839 Bonus ------- None Cogmind --------- Core Integrity 161/250 Matter 290/300 Energy 98/100 System Corruption 0% Temperature Cool (4) Movement Flying (37) Location -9/Mines Parts ------- > --- POWER (1) -------- (None) > --- PROPULSION (2) --- Flight Unit Flight Unit > --- UTILITY (2) ------ Propulsion Shielding > --- WEAPON (2) ------- (None) > --- INVENTORY (5) ---- Flight Unit Peak State ------------ > --- POWER ------------ (None) > --- PROPULSION ------- Flight Unit Flight Unit > --- UTILITY ---------- (None) > --- WEAPON ----------- Grenade Launcher > --- INVENTORY -------- (None) [Rating: 3] Favorites ----------- Power None Propulsion Flight Unit Flight Unit Flight Unit Utility Propulsion Shielding Protection Propulsion Shielding Weapon Grenade Launcher Launcher Grenade Launcher Build | -11 -10 -10 -10 -9 ------- Run | Yrd Mat Min Exi Min Slots Evolved . | . . . . . Power . | . . . . . Propulsion . | . . . . . Utility . | . . . . . Weapon . | . . . . . Parts Attached 6 | . . 6 . . Power . | . . . . . Engine . | . . . . . Core . | . . . . . Reactor . | . . . . . Propulsion 4 | . . 4 . . Treads . | . . . . . Leg . | . . . . . Wheel . | . . . . . Hover . | . . . . . Flight 4 | . . 4 . . Utility 1 | . . 1 . . Device . | . . . . . Storage . | . . . . . Processor . | . . . . . Hackware . | . . . . . Protection 1 | . . 1 . . Artifact . | . . . . . Weapon 1 | . . 1 . . Energy Gun . | . . . . . Energy Cannon . | . . . . . Ballistic Gun . | . . . . . Ballistic Cannon . | . . . . . Launcher 1 | . . 1 . . Special Weapon . | . . . . . Impact Weapon . | . . . . . Slashing Weapon . | . . . . . Piercing Weapon . | . . . . . Special Melee Weapon . | . . . . . Unidentified Prototypes . | . . . . . Parts Lost 2 | . . 2 . . Power . | . . . . . Propulsion 1 | . . 1 . . Utility . | . . . . . Weapon 1 | . . 1 . . Highest Loss Streak 2 | . . 2 . . To Critical Strikes . | . . . . . Average Backups . | . . . 1 1 Power . | . . . . . Propulsion . | . . . 1 1 Utility . | . . . . . Weapon . | . . . . . Tool/Special . | . . . . . Unused Backups . | . . . . . Power . | . . . . . Propulsion . | . . . . . Utility . | . . . . . Weapon . | . . . . . Tool/Special . | . . . . . Average Slot Usage (%) 16 | . . 16 42 42 Flight 12 | . . 12 28 28 Protection 3 | . . 2 14 14 Launcher 1 | . . 1 . . Peak Build Rating 3 | . . 3 3 3 Average Rating 1 | . . 1 3 3 On Entrance 1 | . . . 3 3 Avg Prop Armor Cover (%) . | . . . . . Naked Turns 237 | . 38 199 . . Heaviest Build 3 | . . 3 1 1 Greatest Support 8 | 3 3 8 8 8 Greatest Overweight (x) . | . . . . . Average Overweight (x) . | . . . . . Largest Inventory Capacity 5 | 5 5 5 5 5 Average Capacity 5 | 5 5 5 5 5 Most Carried 1 | . . 1 1 1 Average Carried . | . . . 1 1 Final Capacity 5 | 5 5 5 5 5 Final Carried 1 | . . 1 1 1 Class Distribution -------------------- 100% | Mutant Dominant Class ---------------- Mutant | -10/Materials Mutant | -10/Mines Mutant | -10/Exiles Mutant | -9/Mines Resources | -11 -10 -10 -10 -9 ----------- Run | Yrd Mat Min Exi Min Matter Collected 316 | 33 . 283 . . Remotely . | . . . . . Salvage Created 12 | . . 12 . . Parts 2 | . . 2 . . Haulers Intercepted . | . . . . . Recyclers Shooed . | . . . . . Parts Field Recycled . | . . . . . Retrieved Matter . | . . . . . Parts Self-Destructed . | . . . . . Prevented . | . . . . . Parts Restored . | . . . . . Kills | -11 -10 -10 -10 -9 ------- Run | Yrd Mat Min Exi Min Combat Hostiles Destroyed 1 | . . 1 . . AOE 1 | . . 1 . . Classes Destroyed 1 | . . 1 . . Grunt 1 | . . 1 . . Best Kill Streak 1 | . . 1 . . Combat Bots Only 1 | . . 1 . . Max Kills in Single Turn 1 | . . 1 . . Gunslinging . | . . . . . Exploded 1 | . . 1 . . Melee . | . . . . . Uniques/NPCs Destroyed . | . . . . . Combat | -11 -10 -10 -10 -9 -------- Run | Yrd Mat Min Exi Min Hostile Shots Fired 14 | . . 14 . . Missed 6 | . . 6 . . Hits 8 | . . 8 . . Projectile 8 | . . 8 . . AOE 3 | . . 3 . . Critical Strikes 1 | . . 1 . . Damage Taken 188 | . . 188 . . Core 89 | . . 89 . . Absorbed by Shields . | . . . . . Core Remaining (%) 100 | 100 . . . . Volleys Fired 9 | . . 9 . . Largest 1 | . . 1 . . Hottest 30 | . . 30 . . Shots Fired 9 | . . 9 . . Gun . | . . . . . Cannon . | . . . . . Launcher 9 | . . 9 . . Special . | . . . . . Kinetic . | . . . . . Thermal . | . . . . . Explosive 9 | . . 9 . . Electromagnetic . | . . . . . Robot Hit Streak 1 | . . 1 . . Robot Miss Streak 1 | . . 1 . . Penetration Max . | . . . . . Secondary Targets . | . . . . . Shots Hit Robots 1 | . . 1 . . Core Hits 8 | . . 8 . . Critical Kills . | . . . . . Critical Parts Destroyed . | . . . . . Critical Strikes . | . . . . . Melee Attacks . | . . . . . Impact . | . . . . . Slashing . | . . . . . Piercing . | . . . . . Sneak Attacks . | . . . . . Combat Hostiles . | . . . . . Follow-up Attacks . | . . . . . Damage Inflicted 426 | . . 426 . . Guns . | . . . . . Cannons . | . . . . . Explosions 421 | . . 421 . . Melee . | . . . . . Ramming 5 | . . 5 . . Kinetic . | . . . . . Thermal . | . . . . . Explosive 421 | . . 421 . . Electromagnetic . | . . . . . Impact . | . . . . . Slashing . | . . . . . Piercing . | . . . . . Highest Corruption . | . . . . . Average Corruption . | . . . . . Corruption Purged . | . . . . . Corruption Blocked . | . . . . . Overload Shots . | . . . . . Overflow Damage . | . . . . . Projectiles . | . . . . . Explosions . | . . . . . Melee . | . . . . . Knockbacks . | . . . . . Impact . | . . . . . Kinetic . | . . . . . Secondary . | . . . . . Self-Inflicted Damage 1 | . . 1 . . Shots . | . . . . . Rammed 4 | . . 4 . . Targets Rammed 4 | . . 4 . . Kicked . | . . . . . Crushed . | . . . . . Highest Temperature . | . . . . . Average Temperature . | . . . . . Received Heat Transfer 42 | . . 42 . . Siege Activations . | . . . . . Martial Activations . | . . . . . Shielding Activations . | . . . . . Robots Disrupted . | . . . . . Combat Hostiles . | . . . . . Robots Corrupted . | . . . . . Combat Hostiles . | . . . . . Parts Fried . | . . . . . Impact Corruptions . | . . . . . Robots Melted . | . . . . . Combat Hostiles . | . . . . . Parts Melted . | . . . . . Heat Transferred . | . . . . . Parts Sabotaged . | . . . . . Parts Stolen . | . . . . . Parts Stripped . | . . . . . Power Chain Reactions . | . . . . . Alert | -11 -10 -10 -10 -9 ------- Run | Yrd Mat Min Exi Min Maximum Alert Level . | . . . . . Low Security (%) 100 | 100 100 100 . 100 Level 1 . | . . . . . Level 2 . | . . . . . Level 3 . | . . . . . Level 4 . | . . . . . Level 5 . | . . . . . High Security . | . . . . . Max Security . | . . . . . Peak Influence 45 | . 7 45 . . Initial 2 | . . 2 . . Average 5 | . 3 6 . . Influence Increases 92 | . 7 85 . . Destroy 0b10 Robot/C 20 | . . 20 . . Successful Hack 7 | . 7 . . . Destroy Structure 20 | . . 20 . . Lose Combat Pursuer 45 | . . 45 . . Influence Decreases 92 | . . 92 . . Entered New Map 5 | . . 5 . . Time Decay 67 | . . 67 . . Lost Part 20 | . . 20 . . Squads Dispatched . | . . . . . Investigation . | . . . . . Extermination . | . . . . . Reinforcement . | . . . . . Assault . | . . . . . Garrison . | . . . . . Intercept . | . . . . . Searches Triggered . | . . . . . Construction Impeded . | . . . . . Haulers Reinforced . | . . . . . Active Scanning Responses . | . . . . . Cargo Convoy Interrupts . | . . . . . Stealth | -11 -10 -10 -10 -9 --------- Run | Yrd Mat Min Exi Min Distress Signals . | . . . . . Communications Jammed . | . . . . . Distress Signals . | . . . . . Times Spotted 24 | . 1 23 . . Peak Tracking Total 22 | . 1 22 . . Tactical Retreats 2 | . . 2 . . Traps | -11 -10 -10 -10 -9 ------- Run | Yrd Mat Min Exi Min Traps Triggered . | . . . . . Indirectly . | . . . . . Trap Hack Attempts . | . . . . . Triggered . | . . . . . Disarmed . | . . . . . Reprogrammed . | . . . . . Reused . | . . . . . Traps Extracted . | . . . . . Installed . | . . . . . Triggered . | . . . . . Machines | -11 -10 -10 -10 -9 ---------- Run | Yrd Mat Min Exi Min Machines Disabled . | . . . . . Max in Single Turn . | . . . . . Machines Repaired . | . . . . . Machines Dismantled . | . . . . . Machines Sabotaged . | . . . . . Overloaded Fab Kills . | . . . . . Hacking | -11 -10 -10 -10 -9 --------- Run | Yrd Mat Min Exi Min Machines Accessed 1 | . 1 . . . Terminals 1 | . 1 . . . Fabricators . | . . . . . Repair Stations . | . . . . . Recycling Units . | . . . . . Scanalyzers . | . . . . . Garrison Access . | . . . . . Total Hacks 1 | . 1 . . . Successful 1 | . 1 . . . Failed . | . . . . . Catastrophic . | . . . . . Database Lockouts . | . . . . . Manual . | . . . . . Terminals 1 | . 1 . . . Fabricators . | . . . . . Repair Stations . | . . . . . Recycling Units . | . . . . . Scanalyzers . | . . . . . Garrison Access . | . . . . . Terminal Hacks 1 | . 1 . . . Branch Access Points 1 | . 1 . . . Fabricator Hacks . | . . . . . Repair Station Hacks . | . . . . . Recycling Unit Hacks . | . . . . . Scanalyzer . | . . . . . Garrison Access Hacks . | . . . . . Unauthorized Hacks . | . . . . . Terminals . | . . . . . Fabricators . | . . . . . Repair Stations . | . . . . . Recycling Units . | . . . . . Scanalyzers . | . . . . . Garrison Access . | . . . . . Data Cores Recovered . | . . . . . Used . | . . . . . Hacking Detections . | . . . . . Full Trace Events . | . . . . . Feedback Events . | . . . . . Feedback Blocked . | . . . . . Robot Schematics Acquired . | . . . . . Robots Built . | . . . . . Authchips . | . . . . . Time . | . . . . . Total Robot Build Rating . | . . . . . Part Schematics Acquired . | . . . . . Parts Built . | . . . . . Authchips . | . . . . . Time . | . . . . . Total Part Build Rating . | . . . . . Part Studies Acquired . | . . . . . Parts Repaired . | . . . . . Time . | . . . . . Parts Recycled . | . . . . . Recycled Matter . | . . . . . Retrieved Matter . | . . . . . Retrieved Components . | . . . . . Parts Scanalyzed . | . . . . . Part Schematics Acquired . | . . . . . Parts Damaged . | . . . . . Bothacking | -11 -10 -10 -10 -9 ------------ Run | Yrd Mat Min Exi Min Used RIF Installer . | . . . . . Robots Hacked . | . . . . . Non-combat . | . . . . . Combat . | . . . . . Robot Hacks Applied . | . . . . . Relay Couplers Released . | . . . . . Fabnet Peak Effective % . | . . . . . Robots Rewired . | . . . . . Allies Hacked . | . . . . . Hacks Repelled . | . . . . . Allies | -11 -10 -10 -10 -9 -------- Run | Yrd Mat Min Exi Min Total Allies 1 | . . 1 . . Largest Group 1 | . . 1 . . Highest-Rated Group 31 | . . 31 . . Highest-Rated Ally 31 | . . 31 . . Total Orders . | . . . . . Ally Attacks . | . . . . . Total Damage . | . . . . . Kills . | . . . . . Allies Corrupted . | . . . . . Allies Melted . | . . . . . Intel | -11 -10 -10 -10 -9 ------- Run | Yrd Mat Min Exi Min Active Infowar (turns) . | . . . . . Robot Analysis Total . | . . . . . Derelict Logs Recovered . | . . . . . Drone Launches . | . . . . . Drone Recoveries . | . . . . . Exploration | -11 -10 -10 -10 -9 ------------- Run | Yrd Mat Min Exi Min Turns Passed 474 | 9 38 411 14 2 Spaces Moved 381 | 18 75 251 32 5 Core 146 | 18 75 53 . . Treads . | . . . . . Legs . | . . . . . Wheels . | . . . . . Hover . | . . . . . Flight 235 | . . 198 32 5 Fastest Speed 37 | 50 50 37 37 37 Average Speed 42 | 50 50 40 37 37 Slowest Speed 50 | 50 50 50 37 37 Overloaded Moves . | . . . . . Propulsion Burnouts . | . . . . . Robots Hopped 1 | . . 1 . . Potential Cave-ins 2 | . . 2 . . Cave-ins Triggered . | . . . . . Exploration Rate (%) 17 | 3 13 53 9 8 Regions Visited 4 Branch Regions 3 Pre-discovered Areas . | . . . . . Known Exits Taken 1 | . 1 . . . Unknown Exits Taken 3 | 1 . 1 1 . Scrap Searched 3 | . . 2 . 1 Spaces Dug . | . . . . . Terrain Destroyed 48 | . . 48 . . Melee . | . . . . . Projectile . | . . . . . AOE 48 | . . 48 . . Terrain Rammed . | . . . . . Walls Destroyed . | . . . . . Machines Disabled . | . . . . . Actions | -11 -10 -10 -10 -9 --------- Run | Yrd Mat Min Exi Min Total 675 | 17 74 546 33 5 Wait 280 | . . 278 2 . Move 375 | 17 74 248 31 5 Hop 1 | . . 1 . . Pick Up . | . . . . . Fast Attach 5 | . . 5 . . Attach . | . . . . . Detach . | . . . . . Swap 1 | . . 1 . . Drop . | . . . . . Fire 9 | . . 9 . . Melee . | . . . . . Ram 4 | . . 4 . . Kick . | . . . . . Crush . | . . . . . Escape Stasis . | . . . . . Rewire . | . . . . . Trap . | . . . . . Miscellaneous . | . . . . . Route ------- -11/Scrapyard -10/Materials -10/Mines -10/Exiles -9/Mines History --------- Turn | Location | Event 3 | -11/Scrapyard | Discovered new exit (range 15) 10 | -11/Scrapyard | Entered Materials 30 | -10/Materials | Identified exit to Mines 48 | -10/Materials | Entered Mines 207 | -10/Mines | Assembled infested the area 219 | -10/Mines | Met 8R-AWN 253 | -10/Mines | YI-UF0 nonchalantly dropped a Grenade Launcher on the ground 313 | -10/Mines | Build established: Mutant 453 | -10/Mines | Escorted by a lone wolf Derelict 457 | -10/Mines | Discovered new exit (range 5) 459 | -10/Mines | Entered Exiles 468 | -10/Exiles | Discovered new exit (range 15) 473 | -10/Exiles | Entered Mines 475 | -9/Mines | Self-destructed Last Messages --------------- Found Propulsion Shielding. Found 51 Matter. Acquired Propulsion Shielding. Acquired 38 matter. 8R-AWN suffers critical hit (Destroy). A derelict emerges from the shadows: "Nice work disposing of those Unaware! I'm happy to return the favor and help see you out of these parts." EXIT=FOUND LOCATION=UNKNOWN GOAL=ESCAPE EXIT=FOUND LOCATION=UNKNOWN GOAL=ESCAPE A derelict is hurriedly installing traps. Searching scrap... Found Huge Storage Unit. Found Lrg. Matter Pod. Found 52 Matter. Map ----- +----------------------------------------------------+ | | | | | | | | | | | | | | | | | | | | | | | | | | | ?????????????????????????????????????????????????? | | ?????????????????????????????????????????????????? | | ?????????????????????????????????????????????????? | | ?????????????????????????????????????????????????? | | ?????????????????????????????????????????????????? | | ?????????????????????????????????????????????????? | | ?????????????????????????????????###?????????????? | | ????????????????????????????????# ##????????????? | | ???????????????????????????????? ##???????????? | | ????????????????????????######## #???????????? | | ????????????????????????# ^ #???????????? | | ????????????????????????#!# #????????????? | | ????????????????????????#@# #?????????????? | | ??????????????? ????????#! ^ # #?????????????? | | ???????????????# ##### ## #?????????????? | | ???????????????# ^ #?????????????? | | ???????????????# ####?????????????? | | ???????????????## ##### ##????????????????? | | ????????????????# ??????## #?????????????????? | | ????????????????#?????????# #?????????????????? | | ??????????????????????????## ##?????????????????? | | ???????????????????????????# #??????????????????? | | ??????????????????????????? #??????????????????? | | ???????????????????????????# #??????????????????? | | ???????????????????????????# #??????????????????? | | ???????????????????????????# #??????????????????? | | ???????????????????????????# #??????????????????? | | ???????????????????????????# #??????????????????? | | ???????????????????????????# #??????????????????? | | ???????????????????????????# #??????????????????? | | ???????????????????????????? ???????????????????? | | ???????????????????????????? ???????????????????? | | ???????????????????????????? ???????????????????? | | ?????????????????????????????????????????????????? | | ?????????????????????????????????????????????????? | | ?????????????????????????????????????????????????? | | ?????????????????????????????????????????????????? | +----------------------------------------------------+ Best States ------------- Heat Dissipation 25 Energy Generation 5 Energy Capacity 100 Matter Stores 300 Matter Capacity 300 Sight Range 16 Terrain Scan Density 10 Propulsion Shielding 33 Evasion (%) 62 Item Schematics ----------------- None Robot Schematics ------------------ None Fabricated ------------ Nothing Repaired ---------- Nothing Studied --------- None Alien Tech Used ----------------- None Achievements -------------- None Challenges ------------ None Game ------ Seed LaunchSurgeTerrabomb Manual? 0 Play Time 00:06:21 Cumulative 29.4 hours Start 2026.04.26 @ 18:48:04 End 2026.04.26 @ 18:54:22 Sessions 1 Manual Loads 0 Difficulty Rogue Special Mode None Game No. 54 Rogue 54 Adventurer 0 Explorer 0 Win Type - Total 0 Types 0/0/0/0/0/0/0/0/0/0 Lore% 24 Gallery% 25 Achievement% 23 Wizard Run 0 Options --------- Layout 1 ASCII 0 Keyboard 0 Movement Mouse Keybinds 0 Fullscreen 1 Font 32/SmallcapsGlow Map View 50x35 Zoom Use 0% Tactical HUD 0 Map Filters NONE Filters NONE Steam 1 RUN: 83ce20b5-8976-473f-83ca-f9fdad701e5e